bitfinex-derivatives/quotes_BTCF0:USTF0_20250121
["timestamp","ask_amount","ask_price","bid_price","bid_amount"]
[1737477824561,0.047504,105310.0,105290.0,1.91510056]
[1737477824757,0.047509,105300.0,105290.0,1.86758856]
[1737477824958,0.047505,105310.0,105300.0,0.047506]
[1737477825161,0.04764263,105320.0,105310.0,0.047504]
[1737477825459,0.04764263,105320.0,105310.0,0.408304]
[1737477825656,0.00014263,105320.0,105310.0,0.408304]
[1737477825958,0.14186865,105340.0,105330.0,0.047495]
[1737477826164,0.14186865,105340.0,105330.0,0.969537]
[1737477826961,0.16385239,105350.0,105340.0,0.047491]
[1737477827261,0.16385239,105350.0,105340.0,0.408291]
[1737477827566,0.16385239,105350.0,105340.0,1.908291]
[1737477828758,0.047483,105360.0,105340.0,1.8608]
[1737477828963,0.047483,105360.0,105350.0,0.047486]
[1737477829562,0.047483,105360.0,105350.0,0.408286]
[1737477830563,0.047483,105360.0,105350.0,0.3608]
[1737477830763,0.047486,105350.0,105340.0,0.40915263]
[1737477830962,0.047486,105350.0,105340.0,0.36094263]
[1737477831163,0.047486,105350.0,105340.0,0.00014263]
[1737477831668,0.047486,105350.0,105340.0,0.00683718]
[1737477832061,0.408286,105350.0,105340.0,0.00014263]
[1737477832562,0.908728,105350.0,105320.0,0.3608]
[1737477832765,0.608737,105330.0,105310.0,0.22120235]
[1737477832963,0.4083,105320.0,105310.0,0.22120235]
[1737477833560,0.047504,105310.0,105300.0,0.60830645]
[1737477833866,0.608746,105310.0,105300.0,0.60844908]
[1737477834568,0.608746,105310.0,105270.0,0.1804]
[1737477834761,0.408316,105290.0,105280.0,0.047517]
[1737477834965,0.455833,105290.0,105280.0,0.047517]
[1737477835166,0.408316,105290.0,105280.0,0.047517]
[1737477835562,0.047516,105290.0,105280.0,0.047517]
[1737477835872,0.04765463,105300.0,105290.0,0.047513]
[1737477836069,0.047517,105290.0,105280.0,0.047517]
[1737477836269,0.047518,105280.0,105270.0,0.23489113]
[1737477836463,0.40845463,105300.0,105270.0,0.23489113]
[1737477836464,0.36094263,105300.0,105270.0,0.59569113]
[1737477836766,0.36094263,105300.0,105290.0,0.047513]
[1737477836767,0.04765363,105300.0,105290.0,0.047513]
[1737477837369,0.00014263,105300.0,105270.0,0.59569213]
[1737477837670,0.047498,105330.0,105300.0,0.047505]
[1737477837871,0.047498,105330.0,105320.0,0.0475]
[1737477838073,0.047498,105330.0,105320.0,0.4083]
[1737477838270,0.047504,105320.0,105310.0,0.047504]
[1737477838677,0.047507,105310.0,105300.0,0.047507]
[1737477838970,0.047507,105310.0,105300.0,0.04764963]
[1737477839377,0.60888363,105330.0,105300.0,0.40844963]
[1737477839572,0.047502,105320.0,105300.0,0.40844963]
[1737477839773,0.047504,105310.0,105300.0,0.40844963]
[1737477840076,0.047504,105310.0,105300.0,0.04765163]
[1737477841176,0.408304,105310.0,105300.0,0.00014263]
[1737477841470,0.047514,105290.0,105260.0,0.210624]
[1737477841677,0.047522,105270.0,105260.0,0.21719249]
[1737477841972,0.047522,105270.0,105260.0,0.05409549]
[1737477842179,0.3608,105300.0,105260.0,0.56781049]
[1737477842367,0.70988,105310.0,105280.0,0.3608]
[1737477842567,0.047511,105300.0,105290.0,0.047513]
[1737477842771,0.408311,105300.0,105290.0,0.047513]
[1737477842974,0.408311,105300.0,105270.0,0.40846263]
[1737477843267,0.047511,105300.0,105280.0,0.047515]
[1737477843467,0.408313,105290.0,105280.0,0.047515]
[1737477844675,0.047513,105290.0,105280.0,0.047515]
[1737477845079,0.408313,105290.0,105270.0,8e-07]
[1737477845276,0.04754,105240.0,105220.0,0.047544]
[1737477845571,0.40834,105240.0,105220.0,0.05414087]
[1737477845773,0.047529,105260.0,105240.0,0.047535]
[1737477845975,0.408332,105250.0,105230.0,0.047537]
[1737477846175,0.3608,105250.0,105240.0,0.047534]
[1737477846377,0.36094263,105250.0,105240.0,0.047534]
[1737477846573,0.00014263,105250.0,105240.0,0.047534]
[1737477847078,0.36094263,105250.0,105240.0,0.047534]
[1737477847670,0.00014263,105250.0,105240.0,1.908334]
[1737477848371,0.00014263,105250.0,105240.0,2.074034]
[1737477848974,0.408316,105280.0,105260.0,0.047521]
[1737477849175,0.04751,105290.0,105270.0,0.408314]
[1737477849381,0.047513,105280.0,105270.0,0.047514]
[1737477849582,0.40831,105290.0,105270.0,0.047514]
[1737477850168,0.40845263,105290.0,105270.0,0.04765663]
[1737477851384,0.40845263,105290.0,105270.0,0.09517163]
[1737477851578,0.40845263,105290.0,105270.0,0.04765663]
[1737477851883,0.40845263,105290.0,105280.0,0.047513]
[1737477851884,0.00014263,105290.0,105280.0,0.047513]
[1737477852069,0.00014263,105290.0,105280.0,0.408313]
[1737477854284,0.047496,105320.0,105310.0,0.047498]
[1737477854483,0.57773128,105330.0,105310.0,0.047498]
[1737477855179,0.53023828,105330.0,105290.0,0.765805]
[1737477855371,0.047505,105300.0,105290.0,0.047508]
[1737477856980,0.36094263,105310.0,105300.0,0.047504]
[1737477856981,0.40844263,105310.0,105300.0,0.047504]
[1737477857189,0.00014263,105310.0,105300.0,0.047504]
[1737477857683,0.00014263,105310.0,105300.0,1.547504]
[1737477858082,0.00014263,105310.0,105300.0,0.408304]
[1737477858679,0.047504,105300.0,105290.0,0.047508]
[1737477858878,0.36094263,105310.0,105290.0,0.408308]
[1737477859179,0.40844363,105310.0,105280.0,0.53604263]
[1737477859384,0.047506,105300.0,105290.0,0.047508]
[1737477859688,0.047509,105290.0,105280.0,0.22275563]
[1737477860185,0.17751861,105290.0,105280.0,0.00014263]
[1737477860489,0.408305,105300.0,105290.0,0.047508]
[1737477860993,0.36094263,105310.0,105300.0,0.047504]
[1737477861381,0.40844263,105310.0,105300.0,0.047504]
[1737477861685,0.04764263,105310.0,105300.0,0.047504]
[1737477861889,0.40844263,105310.0,105300.0,0.047504]
[1737477862586,0.5497226,105310.0,105300.0,0.047504]
[1737477862978,0.047504,105300.0,105290.0,0.218706]
[1737477864286,0.5497246,105310.0,105300.0,0.047504]
[1737477864485,0.1889246,105310.0,105300.0,0.047504]
[1737477864687,0.047504,105300.0,105290.0,0.218707]
[1737477865780,0.047504,105300.0,105290.0,0.22595027]
[1737477866481,0.16111333,105310.0,105300.0,0.047504]
[1737477866987,0.52191333,105310.0,105300.0,0.047504]
[1737477867180,0.047504,105300.0,105290.0,0.22594927]
[1737477868282,0.047504,105300.0,105290.0,0.05474927]
[1737477868793,0.11361133,105310.0,105300.0,0.047504]
[1737477869089,0.11361133,105310.0,105300.0,0.53831361]
[1737477870192,0.16111133,105310.0,105300.0,0.047504]
[1737477870382,0.52191133,105310.0,105300.0,0.047504]
[1737477871182,0.047504,105300.0,105290.0,2.04555988]
[1737477871381,0.11361133,105310.0,105290.0,1.68475988]
[1737477871382,0.16111333,105310.0,105290.0,1.68475988]
[1737477871586,0.16111333,105310.0,105300.0,0.047504]
[1737477871883,0.52191333,105310.0,105300.0,0.047504]
[1737477872192,0.047504,105300.0,105290.0,0.05475127]
[1737477872382,0.408304,105300.0,105290.0,0.00724327]
[1737477872583,0.047509,105290.0,105280.0,0.00014263]
[1737477872788,0.047509,105290.0,105280.0,0.04765463]
[1737477872988,0.408309,105290.0,105280.0,0.04765463]
[1737477873189,0.408309,105290.0,105280.0,0.00014263]
[1737477873385,0.408309,105290.0,105280.0,6.3e-07]
[1737477873386,0.96832822,105290.0,105280.0,6.3e-07]
[1737477873683,0.047527,105250.0,105240.0,0.27627623]
[1737477873882,0.047527,105250.0,105240.0,0.17845923]
[1737477873883,0.53833661,105250.0,105240.0,0.17845923]
[1737477874487,0.53833661,105250.0,105230.0,0.50886433]
[1737477874686,0.53834061,105240.0,105230.0,0.50900696]
[1737477875290,0.408331,105240.0,105230.0,0.50900696]
[1737477875483,0.408331,105240.0,105230.0,0.55654296]
[1737477875786,0.3608,105240.0,105230.0,0.55654296]
[1737477876194,0.408331,105240.0,105230.0,0.55654296]
[1737477876691,0.408328,105250.0,105240.0,0.047531]
[1737477877591,0.4156059,105260.0,105250.0,0.047527]
[1737477877781,0.00014263,105260.0,105250.0,0.17753661]
[1737477878382,0.04766463,105260.0,105250.0,0.047527]
[1737477878595,0.40846463,105260.0,105250.0,0.047527]
[1737477878991,0.00014263,105260.0,105250.0,0.047527]
[1737477879295,0.19859899,105260.0,105250.0,0.047527]
[1737477879591,0.19859899,105260.0,105250.0,0.53833661]
[1737477880485,0.19859899,105260.0,105250.0,0.408327]
[1737477881190,0.19859899,105260.0,105250.0,0.54565204]
[1737477883091,0.0475,105310.0,105280.0,0.047511]
[1737477883294,0.05473263,105320.0,105300.0,0.53831161]
[1737477883597,0.3608,105330.0,105300.0,0.408302]
[1737477883598,0.16987611,105310.0,105300.0,0.408302]
[1737477884092,0.16987611,105310.0,105290.0,0.3608]
[1737477884093,0.047504,105300.0,105290.0,0.3608]
[1737477884393,0.408304,105300.0,105290.0,0.00014263]
[1737477884594,0.047504,105300.0,105290.0,0.00014263]
[1737477884798,0.57817711,105310.0,105290.0,0.17766124]
[1737477885095,0.57817711,105310.0,105290.0,0.22516324]
[1737477885293,0.16987611,105310.0,105300.0,0.53831361]
[1737477885690,0.16342836,105310.0,105300.0,0.60852856]
[1737477885894,0.218187,105340.0,105300.0,1.08482856]
[1737477886096,0.408287,105340.0,105330.0,0.047491]
[1737477886699,0.047487,105340.0,105330.0,0.047491]
[1737477887496,0.408287,105340.0,105330.0,0.047491]
[1737477887890,0.047487,105340.0,105330.0,0.047491]
[1737477888492,0.408287,105340.0,105320.0,0.40843663]
[1737477888686,0.047487,105340.0,105320.0,0.04763663]
[1737477888887,0.408287,105340.0,105320.0,0.04763663]
[1737477889091,0.3608,105330.0,105320.0,0.04763663]
[1737477889293,0.047491,105330.0,105320.0,0.04763663]
[1737477889690,0.408291,105330.0,105320.0,0.0074672]
[1737477890198,0.047491,105330.0,105320.0,0.0074672]
[1737477890400,0.047491,105330.0,105320.0,0.0549622]
[1737477890401,0.408291,105330.0,105320.0,0.0549622]
[1737477891300,0.408291,105330.0,105280.0,0.3608]
[1737477891499,0.047545,105210.0,105190.0,0.047552]
[1737477891798,0.047545,105210.0,105170.0,0.38449098]
[1737477891799,0.7216,105200.0,105170.0,0.38449098]
[1737477892002,0.047567,105160.0,105150.0,0.43782308]
[1737477892204,0.047567,105160.0,105150.0,0.07702308]
[1737477892205,0.96939156,105160.0,105150.0,0.07702308]
[1737477892593,0.96939156,105160.0,105140.0,0.00014263]
[1737477892594,0.92182456,105160.0,105140.0,0.00014263]
[1737477892897,0.408372,105150.0,105140.0,0.00014263]
[1737477893293,0.408372,105150.0,105140.0,0.01501645]
[1737477894095,0.408372,105150.0,105140.0,0.06259245]
[1737477894294,0.408372,105150.0,105140.0,0.01501645]
[1737477895396,0.4084519,105150.0,105140.0,0.01501645]
[1737477895596,0.408372,105150.0,105140.0,0.01501645]
[1737477895905,0.408372,105150.0,105140.0,0.00014263]
[1737477898301,0.408372,105150.0,105140.0,0.04771863]
[1737477898302,0.36087782,105150.0,105140.0,0.04771863]
[1737477900604,0.3608,105160.0,105150.0,0.047572]
[1737477900800,0.408367,105160.0,105150.0,1.5]
[1737477901007,0.60859156,105160.0,105150.0,1.5]
[1737477901609,0.047572,105150.0,105140.0,0.00014263]
[1737477901795,0.047581,105130.0,105120.0,0.00735585]
[1737477901993,0.96940556,105130.0,105110.0,0.04759]
[1737477902207,0.3608,105120.0,105100.0,1.647594]
[1737477902407,0.3608,105130.0,105100.0,1.9608]
[1737477902610,0.3608,105130.0,105120.0,0.047585]
[1737477903103,0.00014263,105140.0,105110.0,0.37581829]
[1737477903302,0.00014263,105140.0,105130.0,0.047581]
[1737477903711,0.36094263,105140.0,105130.0,0.047581]
[1737477904005,0.36094263,105140.0,105110.0,0.53884263]
[1737477904197,0.40851863,105140.0,105110.0,0.17804263]
[1737477904403,0.40851863,105140.0,105110.0,0.22562863]
[1737477904708,0.36094263,105140.0,105130.0,0.047581]
[1737477904906,0.36094263,105140.0,105130.0,0.03904335]
[1737477905300,0.00014263,105140.0,105130.0,0.03904335]
[1737477905506,0.00014263,105140.0,105130.0,0.39984335]
[1737477905709,0.00099234,105150.0,105140.0,0.047576]
[1737477907107,0.36179234,105150.0,105140.0,0.047576]
[1737477907304,0.00099234,105150.0,105140.0,0.047576]
[1737477908308,0.00099234,105150.0,105140.0,0.35275015]
[1737477908504,0.00014263,105160.0,105140.0,1.90032615]
[1737477908708,0.00014263,105160.0,105150.0,0.408372]
[1737477909104,0.00014263,105160.0,105150.0,0.047572]
[1737477909705,0.00014263,105160.0,105150.0,0.408372]
[1737477910509,0.00014263,105160.0,105150.0,0.047572]
[1737477910908,0.00014263,105160.0,105150.0,0.408372]
[1737477911109,0.00014263,105160.0,105150.0,0.047572]
[1737477911605,0.00014263,105160.0,105150.0,0.408372]
[1737477912106,0.3608,105190.0,105150.0,0.708372]
[1737477912407,0.047555,105190.0,105160.0,0.047566]
[1737477912610,0.3608,105170.0,105160.0,0.047566]
[1737477912904,0.047562,105180.0,105160.0,0.047564]
[1737477913310,0.047562,105180.0,105160.0,0.09527063]
[1737477913514,0.3608,105170.0,105160.0,0.09527063]
[1737477913698,0.408362,105180.0,105160.0,0.04770663]
[1737477914205,0.408362,105180.0,105160.0,1.59526863]
[1737477914514,0.408362,105180.0,105170.0,0.047563]
[1737477915010,0.3608,105180.0,105170.0,0.047563]
[1737477915512,0.048558,105180.0,105170.0,0.047563]
[1737477915707,0.001,105180.0,105170.0,0.047563]
[1737477916316,0.408356,105190.0,105170.0,0.095123]
[1737477916611,0.408356,105190.0,105180.0,0.047558]
[1737477916805,0.047556,105190.0,105180.0,0.047558]
[1737477917007,0.408356,105190.0,105180.0,0.047558]
[1737477917611,0.409356,105190.0,105180.0,0.047558]
[1737477918108,0.001,105190.0,105180.0,0.408358]
[1737477918310,0.18703181,105230.0,105220.0,0.04754]
[1737477918519,0.04754,105220.0,105200.0,0.047547]
[1737477918708,0.04754,105220.0,105180.0,0.34132394]
[1737477918709,0.71538027,105220.0,105180.0,0.34132394]
[1737477919014,0.71538027,105220.0,105210.0,0.00014263]
[1737477919214,1.07618027,105220.0,105210.0,0.00014263]
[1737477919720,1.07718027,105220.0,105210.0,0.00014263]
[1737477920023,1.07818027,105220.0,105210.0,0.00014263]
[1737477920609,0.771143,105220.0,105210.0,0.00014263]
[1737477921112,0.770143,105220.0,105210.0,0.00014263]
[1737477921711,0.409343,105220.0,105210.0,0.00014263]
[1737477921913,0.409343,105220.0,105210.0,0.04768763]
[1737477922506,0.412343,105220.0,105210.0,0.04768763]
[1737477923015,0.413343,105220.0,105210.0,0.04768763]
[1737477923217,0.413343,105220.0,105190.0,0.047551]
[1737477923513,0.408349,105200.0,105190.0,0.047551]
[1737477923713,0.3608,105200.0,105170.0,0.047561]
[1737477923922,0.047556,105190.0,105180.0,0.047557]
[1737477924103,0.04756,105180.0,105170.0,0.047561]
[1737477924617,0.047563,105170.0,105160.0,0.04770763]
[1737477924806,0.40836,105180.0,105170.0,0.047563]
[1737477925206,0.40836,105180.0,105160.0,0.36872367]
[1737477925207,0.047563,105170.0,105160.0,0.00792367]
[1737477925405,0.408363,105170.0,105160.0,0.00014263]
[1737477925606,0.047563,105170.0,105160.0,0.04770963]
[1737477925810,0.408361,105180.0,105160.0,0.40850963]
[1737477926102,0.408361,105180.0,105160.0,0.04770963]
[1737477926511,0.047561,105180.0,105160.0,0.00014263]
[1737477926810,0.047561,105180.0,105170.0,0.047563]
[1737477927115,0.00014263,105190.0,105180.0,0.047558]
[1737477927410,0.00014263,105190.0,105180.0,0.408358]
[1737477927609,0.00014263,105190.0,105180.0,0.047558]
[1737477927801,0.00014263,105190.0,105180.0,0.408358]
[1737477928007,0.00014263,105190.0,105180.0,0.60858256]
[1737477928417,0.00014263,105190.0,105180.0,0.24778256]
[1737477928710,0.001,105190.0,105180.0,0.61758256]
[1737477929015,0.25450621,105200.0,105190.0,0.047554]
[1737477929308,0.25450621,105200.0,105190.0,0.408354]
[1737477929899,0.17899621,105200.0,105190.0,0.408354]
[1737477930100,0.213928,105250.0,105210.0,0.047543]
[1737477930310,0.261459,105250.0,105230.0,0.60855856]
[1737477930510,0.047531,105240.0,105230.0,0.047534]
[1737477931308,0.408331,105240.0,105230.0,0.047534]
[1737477931605,0.047531,105240.0,105230.0,0.047534]
[1737477931914,0.053531,105240.0,105230.0,0.048534]
[1737477932106,0.006,105240.0,105230.0,0.048534]
[1737477932307,0.414331,105240.0,105230.0,0.048534]
[1737477932507,0.417331,105240.0,105230.0,0.048534]
[1737477932703,0.417331,105240.0,105230.0,0.001]
[1737477932909,0.047543,105220.0,105200.0,0.04669929]
[1737477933107,0.408345,105210.0,105200.0,0.04669929]
[1737477933310,0.3608,105210.0,105200.0,0.04669929]
[1737477933511,0.047551,105200.0,105180.0,0.047557]
[1737477933706,0.408351,105200.0,105160.0,0.408366]
[1737477933908,0.3608,105210.0,105170.0,0.047563]
[1737477934112,0.00014263,105190.0,105180.0,0.047554]
[1737477934308,0.00014263,105190.0,105180.0,0.408354]
[1737477934505,0.00014263,105190.0,105180.0,0.047554]
[1737477934818,0.00014263,105190.0,105180.0,0.408354]
[1737477935314,0.001,105210.0,105180.0,0.708354]
[1737477935517,0.001,105210.0,105200.0,0.408349]
[1737477935712,0.408338,105230.0,105210.0,0.047541]
[1737477936313,0.455878,105230.0,105210.0,0.047541]
[1737477936619,0.40834,105220.0,105210.0,0.00014263]
[1737477936814,0.41592729,105230.0,105210.0,0.04768763]
[1737477937014,0.46346629,105230.0,105210.0,0.04768763]
[1737477937210,0.41592729,105230.0,105210.0,0.04768763]
[1737477937518,0.3608,105220.0,105210.0,0.04768763]
[1737477937817,0.40834,105220.0,105210.0,0.04768763]
[1737477938118,0.04754,105220.0,105210.0,0.04768763]
[1737477938318,0.411336,105230.0,105210.0,0.04768763]
[1737477938510,0.047536,105230.0,105220.0,0.04754]
[1737477938714,0.408336,105230.0,105210.0,0.00014263]
[1737477939013,0.40834,105220.0,105210.0,0.00014263]
[1737477940121,0.40834,105220.0,105210.0,0.04768763]
[1737477940122,0.40934,105220.0,105210.0,0.04768763]
[1737477940315,0.001,105220.0,105210.0,0.04768763]
[1737477940512,0.001,105220.0,105210.0,1.54768763]
[1737477940821,0.001,105220.0,105200.0,0.408346]
[1737477941018,0.001,105220.0,105210.0,0.047545]
[1737477941616,0.19861611,105260.0,105210.0,0.3608]
[1737477941818,0.047538,105230.0,105220.0,0.04754]
[1737477942012,0.408338,105230.0,105220.0,0.00014263]
[1737477942418,0.047538,105230.0,105220.0,0.00014263]
[1737477942616,0.408338,105230.0,105220.0,0.00014263]
[1737477944123,0.2553882,105250.0,105230.0,0.047536]
[1737477944417,0.3608,105240.0,105230.0,0.047533]
[1737477945015,0.3029162,105250.0,105240.0,0.047531]
[1737477945214,0.3029162,105250.0,105230.0,0.047534]
[1737477945215,0.6637162,105250.0,105230.0,0.047534]
[1737477945421,0.408331,105240.0,105220.0,0.00755618]
[1737477945626,0.408331,105240.0,105230.0,0.00014263]
[1737477945819,0.2553882,105250.0,105230.0,0.36094263]
[1737477946126,0.6161882,105250.0,105240.0,0.047531]
[1737477946328,0.2553882,105250.0,105240.0,0.047531]
[1737477946523,0.6161882,105250.0,105240.0,0.047531]
[1737477946921,0.36094263,105250.0,105240.0,0.047531]
[1737477947636,0.36094263,105250.0,105240.0,0.050531]
[1737477948931,0.00014263,105250.0,105240.0,0.1806904]
[1737477949225,0.00014263,105250.0,105240.0,0.050531]
[1737477950442,0.36094263,105250.0,105240.0,0.050531]
[1737477954135,0.00014263,105250.0,105240.0,0.050531]
[1737477954542,0.11354971,105250.0,105240.0,0.050531]
[1737477956446,0.11354971,105250.0,105240.0,0.5414904]
[1737477957039,0.11354971,105250.0,105240.0,2.0414904]
[1737477957349,0.11354971,105250.0,105240.0,2.2021904]
[1737477960439,0.47434971,105250.0,105240.0,0.050531]
[1737477960848,0.11354971,105250.0,105240.0,0.050531]
[1737477961052,0.11354971,105250.0,105240.0,0.5414904]
[1737477961237,0.08770891,105250.0,105240.0,0.5414904]
[1737477961642,0.14423137,105260.0,105250.0,0.047527]
[1737477961839,0.10396151,105270.0,105260.0,0.047522]
[1737477962048,0.10396151,105270.0,105260.0,0.5384814]
[1737477962247,0.25521867,105270.0,105260.0,0.5384814]
[1737477962848,0.25521867,105270.0,105260.0,0.1776814]
[1737477963055,0.30273667,105270.0,105260.0,0.047522]
[1737477963250,0.25821867,105270.0,105250.0,0.00014263]
[1737477963445,0.61901867,105270.0,105250.0,0.04766663]
[1737477963646,0.3608,105260.0,105250.0,0.04766663]
[1737477963847,0.3608,105260.0,105250.0,0.05541909]
[1737477964049,0.66653867,105270.0,105250.0,0.00789509]
[1737477964255,0.66453867,105270.0,105260.0,0.056522]
[1737477964462,0.25921867,105270.0,105260.0,0.056522]
[1737477964951,0.62001867,105270.0,105260.0,0.056522]
[1737477965150,0.25921867,105270.0,105260.0,0.056522]
[1737477965354,0.25621867,105270.0,105260.0,0.056522]
[1737477965551,0.61701867,105270.0,105260.0,0.056522]
[1737477965745,0.3608,105270.0,105260.0,0.1776814]
[1737477965950,0.09517463,105280.0,105270.0,0.047518]
[1737477965951,0.04765863,105280.0,105270.0,0.047518]
[1737477966158,0.00014263,105280.0,105270.0,0.047518]
[1737477966357,0.00014263,105280.0,105270.0,0.1776774]
[1737477966660,0.00014263,105280.0,105270.0,0.408318]
[1737477967045,0.00014263,105280.0,105270.0,0.050518]
[1737477967356,0.00014263,105280.0,105270.0,0.411318]
[1737477967558,0.00014263,105280.0,105270.0,0.5414774]
[1737477968653,0.00014263,105280.0,105270.0,0.54907097]
[1737477969360,0.00014263,105280.0,105270.0,0.18827097]
[1737477969760,0.00014263,105280.0,105270.0,0.54907097]
[1737477970261,0.00124293,105290.0,105280.0,0.047513]
[1737477970451,0.00124293,105290.0,105280.0,0.5384724]
[1737477971455,0.00224293,105290.0,105280.0,0.5384724]
[1737477971650,0.00224293,105290.0,105280.0,0.6686318]
[1737477971857,0.00224293,105290.0,105280.0,1.2234724]
[1737477972055,0.00224293,105290.0,105280.0,2.7234724]
[1737477972457,0.1,105300.0,105290.0,0.04720552]
[1737477972767,0.1,105300.0,105290.0,0.53816492]
[1737477973660,0.104,105300.0,105290.0,0.04720552]
[1737477974059,0.104,105300.0,105290.0,0.53816492]
[1737477974264,0.107,105300.0,105290.0,0.53816492]
[1737477975165,0.107,105300.0,105290.0,0.17736492]
[1737477975367,0.4678,105300.0,105280.0,1.5]
[1737477975562,0.047518,105280.0,105270.0,0.00014263]
[1737477975860,0.047529,105260.0,105250.0,0.00778218]
[1737477976067,0.5384884,105260.0,105250.0,0.00778218]
[1737477976465,0.162,105270.0,105250.0,0.00778218]
[1737477976655,0.3608,105280.0,105260.0,0.047521]
[1737477976862,0.408316,105280.0,105260.0,0.047523]
[1737477977067,0.3608,105280.0,105270.0,0.050519]
[1737477977267,0.36094263,105280.0,105270.0,0.050519]
[1737477977671,0.00014263,105280.0,105270.0,0.050519]
[1737477978571,0.00014263,105280.0,105270.0,0.047519]
[1737477979274,0.00014263,105280.0,105270.0,0.050519]
[1737477979463,0.36094263,105280.0,105270.0,0.050519]
[1737477981564,0.36094263,105280.0,105270.0,1.55840299]
[1737477982874,0.00014263,105280.0,105270.0,2.04936239]
[1737477983071,0.1,105300.0,105270.0,2.04936239]
[1737477983375,0.1,105300.0,105290.0,0.047509]
[1737477983871,0.2701299,105300.0,105290.0,0.047509]
[1737477984673,0.6309299,105300.0,105290.0,0.047509]
[1737477984868,0.6369299,105300.0,105290.0,0.047509]
[1737477987677,0.2761299,105300.0,105290.0,0.047509]
[1737477987870,0.2761299,105300.0,105290.0,0.05560781]
[1737477988072,0.106,105300.0,105290.0,0.05560781]
[1737477988775,0.4668,105300.0,105290.0,0.05560781]
[1737477989075,0.047509,105290.0,105280.0,0.04765563]
[1737477989279,0.4668,105300.0,105280.0,0.04765563]
[1737477989482,0.047509,105290.0,105280.0,0.04765563]
[1737477989672,0.408309,105290.0,105280.0,0.04765563]
[1737477990073,0.408309,105290.0,105280.0,0.00014263]
[1737477990383,0.5394684,105290.0,105280.0,0.00833898]
[1737477990576,0.8480684,105290.0,105280.0,0.00014263]
[1737477991175,0.717909,105290.0,105280.0,0.00014263]
[1737477991981,0.8480684,105290.0,105270.0,1.5]
[1737477992183,0.047525,105260.0,105250.0,0.0556904]
[1737477992487,0.047529,105250.0,105240.0,0.047531]
[1737477992675,0.408329,105250.0,105240.0,0.047531]
[1737477993075,0.6420594,105280.0,105250.0,0.047527]
[1737477993280,0.00014263,105260.0,105250.0,0.5384864]
[1737477993472,0.00014263,105260.0,105250.0,0.1776864]
[1737477993676,0.00014263,105260.0,105250.0,0.047527]
[1737477994281,0.00114263,105260.0,105250.0,0.056527]
[1737477994783,0.40946563,105260.0,105250.0,0.056527]
[1737477995085,0.00114263,105260.0,105250.0,0.5474864]
[1737477995289,0.3285299,105290.0,105280.0,0.047514]
[1737477995490,0.1701299,105290.0,105280.0,0.047514]
[1737477995681,0.5309299,105290.0,105280.0,0.047514]
[1737477995883,0.1701299,105290.0,105280.0,0.5384734]
[1737477996095,0.408297,105320.0,105310.0,0.0475]
[1737477996280,0.3608,105320.0,105310.0,0.0475]
[1737477996485,0.3608,105330.0,105320.0,0.047496]
[1737477996878,1.2812406,105340.0,105320.0,0.047496]
[1737477997082,0.3608,105330.0,105320.0,0.047496]
[1737477997283,0.005,105320.0,105310.0,0.047499]
[1737477997583,0.005,105320.0,105310.0,1.547499]
[1737477998385,0.005,105320.0,105310.0,1.6776584]
[1737477998691,0.013,105320.0,105310.0,2.0394584]
[1737477998890,0.008,105320.0,105310.0,2.0394584]
[1737477999192,1.14817754,105340.0,105320.0,0.047494]
[1737477999393,1.19566754,105340.0,105320.0,0.047494]
[1737477999590,1.14817754,105340.0,105320.0,0.047494]
[1737477999788,0.73988754,105340.0,105320.0,0.1776514]
[1737478000096,1.09568754,105340.0,105330.0,0.047491]
[1737478000391,1.14317354,105340.0,105330.0,0.047491]
[1737478000586,0.78237354,105340.0,105330.0,0.047491]
[1737478000992,0.88792797,105340.0,105330.0,0.047491]
[1737478001290,0.52712797,105340.0,105330.0,0.047491]
[1737478001495,1.01808737,105340.0,105330.0,0.001]
[1737478001688,0.047492,105330.0,105320.0,0.00014263]
[1737478002184,0.02124197,105340.0,105320.0,1.99905159]
[1737478002386,0.3608,105330.0,105320.0,1.67779603]
[1737478002594,0.3608,105330.0,105320.0,1.54763663]
[1737478002796,0.408291,105330.0,105320.0,0.00014263]
[1737478003093,0.773091,105330.0,105320.0,0.00014263]
[1737478003290,0.412291,105330.0,105320.0,0.00014263]
[1737478003494,0.047499,105320.0,105300.0,0.047502]
[1737478003695,0.3608,105310.0,105300.0,0.047502]
[1737478004486,0.4083,105310.0,105300.0,0.047502]
[1737478004686,0.047504,105300.0,105290.0,1.70874963]
[1737478004990,0.408304,105300.0,105290.0,0.00014263]
[1737478006691,0.3608,105300.0,105290.0,0.17781103]
[1737478006996,0.554401,105310.0,105290.0,0.17781103]
[1737478006997,0.3608,105310.0,105300.0,0.047504]
[1737478008687,0.4083,105310.0,105300.0,0.047504]
[1737478009092,0.4093,105310.0,105300.0,0.047504]
[1737478009293,0.4093,105310.0,105290.0,0.13030203]
[1737478009495,0.3608,105300.0,105290.0,0.04764963]
[1737478009994,0.408304,105300.0,105290.0,0.04764963]
[1737478010590,0.408304,105300.0,105290.0,1.54964963]
[1737478011290,0.3608,105300.0,105290.0,1.67980903]
[1737478011496,0.49431352,105310.0,105290.0,1.67980903]
[1737478011998,0.49331352,105310.0,105290.0,1.67980903]
[1737478012485,0.3608,105300.0,105290.0,1.54964963]
[1737478013392,0.44581252,105300.0,105290.0,1.54764963]
[1737478013897,0.08501252,105300.0,105290.0,2.04060903]
[1737478014101,0.08501252,105300.0,105290.0,1.67980903]
[1737478014497,0.08501252,105300.0,105290.0,2.04060903]
[1737478015201,0.08501252,105300.0,105290.0,1.67980903]
[1737478015402,0.08501252,105300.0,105290.0,2.04060903]
[1737478015610,0.08501252,105300.0,105290.0,1.91044963]
[1737478015901,0.49331652,105300.0,105290.0,0.00214263]
[1737478016303,0.408304,105300.0,105290.0,0.00214263]
[1737478019195,0.3608,105300.0,105290.0,0.04965163]
[1737478019499,0.44581252,105310.0,105300.0,0.047504]
[1737478019702,0.44581252,105310.0,105300.0,0.1776634]
[1737478020405,0.44581252,105310.0,105300.0,0.047504]
[1737478021203,0.08501252,105310.0,105300.0,0.5384634]
[1737478021402,0.14183016,105320.0,105300.0,0.8505634]
[1737478021606,0.19851605,105330.0,105310.0,0.5384594]
[1737478021908,0.19851605,105330.0,105320.0,0.5384544]